[Event "3rd FIDE WCCC Rapid U08 2019"]
[Site "Minsk"]
[Date "2019.08.16"]
[Round "3.2"]
[White "Bouska, Jiri"]
[Black "Radionenko, Gleb"]
[Result "1-0"]
[ECO "B47"]
[WhiteElo "1505"]
[BlackElo "1222"]
[Annotator "NA"]
[PlyCount "39"]
[EventDate "2019.08.16"]
[EventType "swiss"]
[EventCountry "BLR"]
[SourceTitle "playchess.com"]
[Source "ChessBase"]
[SourceQuality "1"]
[TimeControl "600+5"]

1. e4 {[%emt 0:00:00]} c5 {[%emt 0:00:03]} 2. Nf3 {[%emt 0:00:01]} e6 {[%emt 0:00:02]} 3. d4 {[%emt 0:00:01]} cxd4 {[%emt 0:00:01]} 4. Nxd4 {[%emt 0:00:01]} Nc6 {[%emt 0:00:01]} 5. Nc3 {[%emt 0:00:09]} Qc7 {[%emt 0:00:01]} 6. Ndb5 {[%emt 0:00:06]} Qb6 {[%emt 0:00:40]} 7. Be3 {[%emt 0:00:08]} Qa5 {[%emt 0:00:06]} 8. Nd6+ {[%emt 0:00:02]} Bxd6 {[%emt 0:00:02]} 9. Qxd6 {[%emt 0:00:02]} Nf6 {[%emt 0:00:33]} 10. f3 {[%emt 0:00:43]} Qb4 {[%emt 0:00:51]} 11. Qxb4 {[%emt 0:00:03]} Nxb4 {[%emt 0:00:01]} 12. O-O-O {[%emt 0:00:03]} Nc6 {[%emt 0:00:50]} 13. Bc5 {[%emt 0:00:01]} b6 {[%emt 0:00:06]} 14. Ba3 {[%emt 0:00:03]} Bb7 {[%emt 0:00:18]} 15. Nb5 {[%emt 0:00:00]} Kd8 {[%emt 0:00:29]} 16. Nd6 {[%emt 0:00:31]} Rg8 {[%emt 0:01:19]} 17. Nxb7+ {[%emt 0:00:03]} Kc8 {[%emt 0:00:01]} 18. Ba6 {[%emt 0:00:03]} Rb8 {[%emt 0:00:22]} 19. Na5+ {[%emt 0:00:21]} Kd8 {[%emt 0:00:06]} 20. Nxc6+ {[%emt 0:00:02] Ra8} 1-0

[Event "3rd FIDE WCCC Rapid U08 2019"]
[Site "Minsk"]
[Date "2019.08.16"]
[Round "3.3"]
[White "Samimi, Armin"]
[Black "Anuchyn, Serhii"]
[Result "1-0"]
[ECO "C40"]
[WhiteElo "1478"]
[BlackElo "1136"]
[Annotator "NA"]
[PlyCount "111"]
[EventDate "2019.08.16"]
[EventType "swiss"]
[EventCountry "BLR"]
[SourceTitle "playchess.com"]
[Source "ChessBase"]
[SourceQuality "1"]
[TimeControl "600+5"]

1. e4 {[%emt 0:00:00]} e5 {[%emt 0:00:00]} 2. Nf3 {[%emt 0:00:00]} d5 {[%emt 0:00:01]} 3. Nxe5 {[%emt 0:00:02]} Bd6 {[%emt 0:00:05]} 4. d4 {[%emt 0:00:08]} dxe4 {[%emt 0:00:05]} 5. Nc4 {[%emt 0:00:12]} Nf6 {[%emt 0:00:11]} 6. Be3 {[%emt 0:00:17]} O-O {[%emt 0:00:20]} 7. Be2 {[%emt 0:00:05]} Nc6 {[%emt 0:00:30]} 8. O-O {[%emt 0:00:06]} Be6 {[%emt 0:00:15]} 9. Nc3 {[%emt 0:00:24]} Bxc4 {[%emt 0:00:16]} 10. Bxc4 {[%emt 0:00:06]} Re8 {[%emt 0:00:22]} 11. Qe2 {[%emt 0:00:48]} a6 {[%emt 0:00:31]} 12. a4 {[%emt 0:00:04]} Na5 {[%emt 0:00:28]} 13. Ba2 {[%emt 0:00:08]} Nc6 {[%emt 0:00:20]} 14. Rfe1 {[%emt 0:00:46]} Qd7 {[%emt 0:00:08]} 15. h3 {[%emt 0:00:04]} Rad8 {[%emt 0:00:05]} 16. Rad1 {[%emt 0:00:15]} h6 {[%emt 0:00:53]} 17. Kh1 {[%emt 0:03:20]} Bb4 {[%emt 0:01:30]} 18. Qc4 {[%emt 0:01:03]} Bxc3 {[%emt 0:00:29]} 19. Qxc3 {[%emt 0:00:05]} Nd5 {[%emt 0:00:30]} 20. Qd2 {[%emt 0:01:07]} Re6 {[%emt 0:01:47]} 21. c3 {[%emt 0:00:39]} Rg6 {[%emt 0:00:23]} 22. Qe2 {[%emt 0:00:28]} Qf5 {[%emt 0:01:01]} 23. Bc1 {[%emt 0:00:24]} Nf6 {[%emt 0:00:25]} 24. Bb1 {[%emt 0:00:22]} Re8 {[%emt 0:00:38]} 25. f3 {[%emt 0:00:11]} Qa5 {[%emt 0:00:13]} 26. fxe4 {[%emt 0:00:07]} Qxa4 {[%emt 0:00:06]} 27. e5 {[%emt 0:00:05]} Nd5 {[%emt 0:00:16]} 28. Bxg6 {[%emt 0:00:04]} fxg6 {[%emt 0:00:03]} 29. Qe4 {[%emt 0:00:09]} Nde7 {[%emt 0:00:04]} 30. d5 {[%emt 0:00:16]} Qxe4 {[%emt 0:00:03]} 31. Rxe4 {[%emt 0:00:01]} Na7 {[%emt 0:00:12]} 32. d6 {[%emt 0:00:02]} Nf5 {[%emt 0:00:12]} 33. d7 {[%emt 0:00:02]} Rd8 {[%emt 0:00:02]} 34. Ree1 {[%emt 0:00:05]} Kf7 {[%emt 0:00:08]} 35. e6+ {[%emt 0:00:01]} Ke7 {[%emt 0:00:03]} 36. b3 {[%emt 0:00:03]} Nd6 {[%emt 0:00:03]} 37. Ba3 {[%emt 0:00:04]} Nc6 {[%emt 0:00:04]} 38. Bxd6+ {[%emt 0:00:03]} cxd6 {[%emt 0:00:02]} 39. Rf1 {[%emt 0:00:07]} Rf8 {[%emt 0:00:11]} 40. Rxf8 {[%emt 0:00:04]} Kxf8 {[%emt 0:00:03]} 41. Rxd6 {[%emt 0:00:02]} Ke7 {[%emt 0:00:02]} 42. Rxc6 {[%emt 0:00:01]} bxc6 {[%emt 0:00:02]} 43. Kg1 {[%emt 0:00:05]} g5 {[%emt 0:00:03]} 44. Kf2 {[%emt 0:00:01]} g6 {[%emt 0:00:04]} 45. Ke3 {[%emt 0:00:03]} c5 {[%emt 0:00:06]} 46. Kd3 {[%emt 0:00:02]} h5 {[%emt 0:00:02]} 47. Kc4 {[%emt 0:00:05]} g4 {[%emt 0:00:07]} 48. hxg4 {[%emt 0:00:01]} hxg4 {[%emt 0:00:02]} 49. Kxc5 {[%emt 0:00:02]} g3 {[%emt 0:00:02]} 50. Kc6 {[%emt 0:00:02]} g5 {[%emt 0:00:04]} 51. Kc7 {[%emt 0:00:01]} Kxe6 {[%emt 0:00:03]} 52. d8=Q {[%emt 0:00:05]} Kf5 {[%emt 0:00:06]} 53. Kd6 {[%emt 0:00:03]} Kg4 {[%emt 0:00:03]} 54. Ke5 {[%emt 0:00:02]} Kh5 {[%emt 0:00:05]} 55. Kf5 {[%emt 0:00:04]} Kh6 {[%emt 0:00:03]} 56. Qh8# {[%emt 0:00:01]} 1-0

[Event "3rd FIDE WCCC Rapid U08 2019"]
[Site "Minsk"]
[Date "2019.08.16"]
[Round "3.4"]
[White "Achkasov, Egor"]
[Black "Tsoy, Maxim"]
[Result "0-1"]
[ECO "D85"]
[WhiteElo "1208"]
[BlackElo "1689"]
[Annotator "NA"]
[PlyCount "64"]
[EventDate "2019.08.16"]
[EventType "swiss"]
[EventCountry "BLR"]
[SourceTitle "playchess.com"]
[Source "ChessBase"]
[SourceQuality "1"]
[TimeControl "600+5"]

1. d4 {[%emt 0:00:00]} Nf6 {[%emt 0:00:01]} 2. c4 {[%emt 0:00:00]} g6 {[%emt 0:00:01]} 3. Nc3 {[%emt 0:00:00]} d5 {[%emt 0:00:01]} 4. cxd5 {[%emt 0:00:00]} Nxd5 {[%emt 0:00:01]} 5. Nxd5 {[%emt 0:00:04]} Qxd5 {[%emt 0:00:03]} 6. Nf3 {[%emt 0:00:04]} Bg7 {[%emt 0:00:01]} 7. Bf4 {[%emt 0:00:16]} Bg4 {[%emt 0:00:18]} 8. e3 {[%emt 0:00:31]} Nc6 {[%emt 0:00:30]} 9. h3 {[%emt 0:00:09]} Bxf3 {[%emt 0:00:06]} 10. gxf3 {[%emt 0:00:20]} Qa5+ {[%emt 0:00:03]} 11. Qd2 {[%emt 0:00:06]} Nb4 {[%emt 0:00:16]} 12. Rc1 {[%emt 0:00:46]} e5 {[%emt 0:01:08]} 13. dxe5 {[%emt 0:00:27]} Rd8 {[%emt 0:00:05]} 14. Qc3 {[%emt 0:01:01]} Bf8 {[%emt 0:01:00]} 15. a3 {[%emt 0:00:17]} Bc5 {[%emt 0:02:26]} 16. e6 {[%emt 0:00:35]} f6 {[%emt 0:00:30]} 17. Bg2 {[%emt 0:01:03]} Nd3+ {[%emt 0:00:30]} 18. Kf1 {[%emt 0:00:40]} Qa6 {[%emt 0:00:44]} 19. Qc4 {[%emt 0:00:39]} Nxc1 {[%emt 0:01:54]} 20. Kg1 {[%emt 0:00:59]} Qxc4 {[%emt 0:00:07]} 21. Kh2 {[%emt 0:00:12]} Bd6 {[%emt 0:00:05]} 22. Bxd6 Rxd6 23. e7 {[%emt 0:00:30]} Kxe7 {[%emt 0:00:19]} 24. e4 {[%emt 0:00:06]} Rd2 {[%emt 0:00:02]} 25. Kg3 {[%emt 0:00:05]} Ne2+ {[%emt 0:00:04]} 26. Kh2 {[%emt 0:00:14]} Qc5 {[%emt 0:00:01]} 27. Rf1 {[%emt 0:00:11]} Qd6+ {[%emt 0:00:12]} 28. Kh1 {[%emt 0:00:09]} Ng3+ {[%emt 0:00:06]} 29. fxg3 {[%emt 0:00:09]} Qxg3 {[%emt 0:00:02]} 30. Rg1 {[%emt 0:00:03]} Rxg2 {[%emt 0:00:05]} 31. Rxg2 {[%emt 0:00:07]} Qxh3+ {[%emt 0:00:01]} 32. Rh2 {[%emt 0:00:01]} Qf1# {[%emt 0:00:03]} 0-1

[Event "3rd FIDE WCCC Rapid U08 2019"]
[Site "Minsk"]
[Date "2019.08.16"]
[Round "3.5"]
[White "Baryshnikov, Grigoriy"]
[Black "Nguyen, Nghia Gia Binh"]
[Result "0-1"]
[ECO "C03"]
[WhiteElo "1227"]
[BlackElo "1350"]
[Annotator "NA"]
[PlyCount "70"]
[EventDate "2019.08.16"]
[EventType "swiss"]
[EventCountry "BLR"]
[SourceTitle "playchess.com"]
[Source "ChessBase"]
[SourceQuality "1"]
[TimeControl "600+5"]

1. e4 {[%emt 0:00:00]} e6 {[%emt 0:00:00]} 2. d4 {[%emt 0:00:00]} d5 {[%emt 0:00:00]} 3. Nd2 {[%emt 0:00:01]} Be7 {[%emt 0:00:00]} 4. Ngf3 {[%emt 0:00:08]} Nf6 {[%emt 0:00:02]} 5. Bd3 {[%emt 0:00:03]} c5 {[%emt 0:00:03]} 6. c3 {[%emt 0:00:02]} Nc6 {[%emt 0:00:01]} 7. e5 {[%emt 0:01:01]} Nd7 {[%emt 0:00:02]} 8. O-O {[%emt 0:00:11]} cxd4 {[%emt 0:00:02]} 9. cxd4 {[%emt 0:00:02]} Qb6 {[%emt 0:00:02]} 10. Nb3 {[%emt 0:00:14]} h6 {[%emt 0:00:01]} 11. Bc2 {[%emt 0:00:32]} g5 {[%emt 0:00:03]} 12. h3 {[%emt 0:00:45]} Rg8 {[%emt 0:00:05]} 13. Qd3 {[%emt 0:00:10]} Rg7 {[%emt 0:00:07]} 14. Nh2 {[%emt 0:00:21]} Nb4 {[%emt 0:00:06]} 15. Qd2 {[%emt 0:00:08]} Qc6 {[%emt 0:00:01]} 16. Bd3 {[%emt 0:00:18]} f5 {[%emt 0:00:07]} 17. a3 {[%emt 0:00:31]} Nxd3 {[%emt 0:00:04]} 18. Qxd3 {[%emt 0:00:01]} b6 {[%emt 0:00:05]} 19. Bd2 {[%emt 0:00:04]} a5 {[%emt 0:00:05]} 20. Rac1 {[%emt 0:00:30]} Qa4 {[%emt 0:00:05]} 21. Rc2 {[%emt 0:00:23]} Ba6 {[%emt 0:00:11]} 22. Qf3 {[%emt 0:00:03]} Bxf1 {[%emt 0:00:08]} 23. Nxf1 {[%emt 0:00:19]} Kf8 {[%emt 0:00:16]} 24. Rc3 {[%emt 0:00:26]} Kg8 {[%emt 0:00:06]} 25. Qh5 {[%emt 0:00:36]} Kh7 {[%emt 0:00:02]} 26. f4 {[%emt 0:00:12]} Rag8 {[%emt 0:00:21]} 27. fxg5 {[%emt 0:00:14]} Bxg5 {[%emt 0:00:02]} 28. Bxg5 {[%emt 0:00:57]} Rxg5 {[%emt 0:00:01]} 29. Qf7+ {[%emt 0:00:02]} R8g7 {[%emt 0:00:02]} 30. Qxg7+ {[%emt 0:03:13]} Rxg7 {[%emt 0:00:05]} 31. Nfd2 {[%emt 0:00:17]} Qb5 {[%emt 0:00:08]} 32. Nf3 {[%emt 0:00:10]} Qe2 {[%emt 0:00:03]} 33. g4 {[%emt 0:00:30]} fxg4 {[%emt 0:00:04]} 34. hxg4 {[%emt 0:00:13]} Rxg4+ {[%emt 0:00:01]} 35. Kh1 {[%emt 0:00:00]} Qg2# {[%emt 0:00:19]} 0-1

[Event "3rd FIDE WCCC Rapid U08 2019"]
[Site "Minsk"]
[Date "2019.08.16"]
[Round "3.6"]
[White "Korelskiy, Egor"]
[Black "Pogorelov, Vladimir"]
[Result "0-1"]
[ECO "B01"]
[WhiteElo "1362"]
[BlackElo "1182"]
[Annotator "NA"]
[PlyCount "66"]
[EventDate "2019.08.16"]
[EventType "swiss"]
[EventCountry "BLR"]
[SourceTitle "playchess.com"]
[Source "ChessBase"]
[SourceQuality "1"]
[TimeControl "600+5"]

1. e4 {[%emt 0:00:00]} d5 {[%emt 0:00:00]} 2. exd5 {[%emt 0:00:00]} Qxd5 {[%emt 0:00:00]} 3. Nc3 {[%emt 0:00:02]} Qa5 {[%emt 0:00:01]} 4. Nf3 {[%emt 0:00:01]} Nf6 {[%emt 0:00:03]} 5. d4 {[%emt 0:00:02]} Bg4 {[%emt 0:00:01]} 6. Bd2 {[%emt 0:00:02]} c6 {[%emt 0:00:05]} 7. Be2 {[%emt 0:00:04]} e6 {[%emt 0:00:03]} 8. O-O {[%emt 0:00:12]} Bd6 {[%emt 0:00:01]} 9. Ne4 {[%emt 0:00:16]} Qc7 {[%emt 0:00:02]} 10. Nxf6+ {[%emt 0:00:11]} gxf6 {[%emt 0:00:01]} 11. h3 {[%emt 0:00:01]} Bxf3 {[%emt 0:00:05]} 12. Bxf3 {[%emt 0:00:01]} Rg8 {[%emt 0:00:04]} 13. Re1 {[%emt 0:00:11]} Nd7 {[%emt 0:00:03]} 14. c4 {[%emt 0:00:32]} c5 {[%emt 0:00:12]} 15. d5 {[%emt 0:00:13]} e5 {[%emt 0:00:01]} 16. Bh5 {[%emt 0:00:36]} O-O-O {[%emt 0:00:49]} 17. Bxf7 {[%emt 0:00:06]} Rg7 {[%emt 0:00:03]} 18. Be6 {[%emt 0:00:03]} Kb8 {[%emt 0:00:09]} 19. Qc2 {[%emt 0:01:58]} Nf8 {[%emt 0:00:08]} 20. Bf5 {[%emt 0:00:14]} Ng6 {[%emt 0:00:05]} 21. Bxg6 {[%emt 0:00:49]} Rxg6 22. Kh1 {[%emt 0:00:36]} Rdg8 {[%emt 0:00:16]} 23. Rg1 {[%emt 0:00:04]} Qg7 {[%emt 0:00:02]} 24. g3 {[%emt 0:00:53]} Qd7 {[%emt 0:00:09]} 25. Kh2 {[%emt 0:00:06]} f5 {[%emt 0:00:07]} 26. a3 {[%emt 0:00:25]} f4 {[%emt 0:00:11]} 27. b4 {[%emt 0:01:29]} fxg3+ {[%emt 0:00:05]} 28. fxg3 {[%emt 0:00:01]} e4 {[%emt 0:00:03]} 29. Be1 {[%emt 0:00:16]} Qg7 {[%emt 0:00:11]} 30. Ra2 {[%emt 0:02:36]} Bxg3+ {[%emt 0:00:07]} 31. Kh1 {[%emt 0:00:23]} Bxe1 {[%emt 0:00:14]} 32. Rxe1 {[%emt 0:00:01]} Rg1+ {[%emt 0:00:05]} 33. Kh2 {[%emt 0:00:10]} Qg3# {[%emt 0:00:09]} 0-1

[Event "3rd FIDE WCCC Rapid U08 2019"]
[Site "Minsk"]
[Date "2019.08.16"]
[Round "4.1"]
[White "Usov, Dmitry E."]
[Black "Bouska, Jiri"]
[Result "1-0"]
[ECO "B22"]
[WhiteElo "1331"]
[BlackElo "1505"]
[Annotator "NA"]
[PlyCount "85"]
[EventDate "2019.08.16"]
[EventType "swiss"]
[EventCountry "BLR"]
[SourceTitle "playchess.com"]
[Source "ChessBase"]
[SourceQuality "1"]
[TimeControl "600+5"]

1. e4 {[%emt 0:00:00]} c5 {[%emt 0:00:00]} 2. c3 {[%emt 0:00:00]} e5 {[%emt 0:00:06]} 3. Nf3 {[%emt 0:00:00]} Nc6 {[%emt 0:00:01]} 4. Bb5 {[%emt 0:00:03]} Nf6 {[%emt 0:00:05]} 5. Bxc6 {[%emt 0:00:08]} bxc6 {[%emt 0:00:01]} 6. Nxe5 {[%emt 0:00:08]} Qe7 {[%emt 0:00:03]} 7. d4 {[%emt 0:00:22]} cxd4 {[%emt 0:00:06]} 8. cxd4 {[%emt 0:00:03]} Nxe4 {[%emt 0:00:02]} 9. O-O {[%emt 0:00:04]} f6 {[%emt 0:00:10]} 10. Nc4 {[%emt 0:00:04]} d5 {[%emt 0:00:09]} 11. Ncd2 {[%emt 0:00:11]} Nxd2 {[%emt 0:00:09]} 12. Bxd2 {[%emt 0:00:04]} Qc7 {[%emt 0:00:08]} 13. Re1+ {[%emt 0:00:05]} Be7 {[%emt 0:00:01]} 14. Nc3 O-O {[%emt 0:00:08]} 15. Qc2 {[%emt 0:00:15]} Bd6 {[%emt 0:00:10]} 16. h3 {[%emt 0:00:03]} Bd7 {[%emt 0:00:08]} 17. Rac1 {[%emt 0:00:05]} Rac8 {[%emt 0:00:13]} 18. Na4 {[%emt 0:00:13]} Be8 {[%emt 0:00:20]} 19. Nc5 {[%emt 0:00:08]} Bg6 {[%emt 0:00:24]} 20. Qc3 {[%emt 0:00:16]} Rfe8 {[%emt 0:00:16]} 21. Ne6 {[%emt 0:00:21]} Qd7 {[%emt 0:00:04]} 22. Nf4 {[%emt 0:00:22]} Bxf4 {[%emt 0:00:06]} 23. Bxf4 {[%emt 0:00:02]} Rxe1+ {[%emt 0:00:22]} 24. Rxe1 {[%emt 0:00:02]} Qf5 {[%emt 0:00:23]} 25. Bg3 {[%emt 0:00:10]} Re8 {[%emt 0:01:09]} 26. Rxe8+ {[%emt 0:00:28]} Bxe8 {[%emt 0:00:01]} 27. Kh2 {[%emt 0:00:03]} Qd7 {[%emt 0:00:34]} 28. Qc5 {[%emt 0:00:16]} Qb7 {[%emt 0:00:58]} 29. b3 {[%emt 0:00:28]} Kf7 {[%emt 0:00:21]} 30. b4 {[%emt 0:00:47]} Qe7 {[%emt 0:00:44]} 31. Bd6 {[%emt 0:00:16]} Qd7 {[%emt 0:00:01]} 32. Bg3 {[%emt 0:00:11]} Kg8 {[%emt 0:00:52]} 33. a4 {[%emt 0:00:10]} h6 {[%emt 0:00:16]} 34. a5 {[%emt 0:00:10]} a6 {[%emt 0:00:47]} 35. Qb6 {[%emt 0:00:20]} Qc8 {[%emt 0:00:03]} 36. Qc5 {[%emt 0:00:59]} Kf7 {[%emt 0:00:08]} 37. b5 {[%emt 0:00:09]} axb5 {[%emt 0:00:07]} 38. Qb6 {[%emt 0:00:03]} Qa8 {[%emt 0:00:12]} 39. a6 {[%emt 0:00:02]} b4 {[%emt 0:00:21]} 40. a7 {[%emt 0:00:04]} b3 {[%emt 0:00:18]} 41. Qb8 {[%emt 0:00:02]} b2 {[%emt 0:00:09]} 42. Qxa8 {[%emt 0:00:04]} b1=Q {[%emt 0:00:19]} 43. Qb8 {[%emt 0:00:06]} 1-0

[Event "3rd FIDE WCCC Rapid U08 2019"]
[Site "Minsk"]
[Date "2019.08.16"]
[Round "4.2"]
[White "Rose, Noah"]
[Black "Samimi, Armin"]
[Result "1/2-1/2"]
[ECO "B20"]
[WhiteElo "1589"]
[BlackElo "1478"]
[Annotator "NA"]
[PlyCount "121"]
[EventDate "2019.08.16"]
[EventType "swiss"]
[EventCountry "BLR"]
[SourceTitle "playchess.com"]
[Source "ChessBase"]
[SourceQuality "1"]
[TimeControl "600+5"]

1. e4 {[%emt 0:00:00]} c5 {[%emt 0:00:00]} 2. Bc4 {[%emt 0:00:00]} Nc6 {[%emt 0:00:00]} 3. Nc3 {[%emt 0:00:02]} Nf6 {[%emt 0:00:00]} 4. f4 {[%emt 0:00:04]} d6 {[%emt 0:00:32]} 5. h3 {[%emt 0:00:03]} g6 {[%emt 0:00:04]} 6. Nf3 {[%emt 0:00:02]} Bg7 {[%emt 0:00:03]} 7. O-O {[%emt 0:00:06]} O-O {[%emt 0:00:02]} 8. Qe1 {[%emt 0:00:08]} a6 {[%emt 0:00:18]} 9. Qg3 {[%emt 0:00:09]} b5 {[%emt 0:00:08]} 10. Bd5 {[%emt 0:00:15]} Bb7 {[%emt 0:00:20]} 11. Bxc6 {[%emt 0:00:03]} Bxc6 {[%emt 0:00:02]} 12. d3 {[%emt 0:00:02]} Nh5 {[%emt 0:00:12]} 13. Qg4 {[%emt 0:00:32]} Bd7 {[%emt 0:01:01]} 14. f5 {[%emt 0:00:08]} Nf6 {[%emt 0:00:12]} 15. Qf4 {[%emt 0:00:20]} b4 {[%emt 0:00:39]} 16. Ne2 {[%emt 0:00:09]} gxf5 {[%emt 0:00:15]} 17. exf5 {[%emt 0:00:05]} Kh8 {[%emt 0:00:38]} 18. g4 {[%emt 0:00:16]} Bc6 {[%emt 0:00:42]} 19. g5 {[%emt 0:00:29]} Nd5 {[%emt 0:00:04]} 20. Qh4 {[%emt 0:00:07]} h6 {[%emt 0:02:50]} 21. gxh6 {[%emt 0:00:52]} Bf6 {[%emt 0:00:03]} 22. Ng5 {[%emt 0:00:25]} Bxg5 {[%emt 0:00:11]} 23. Bxg5 {[%emt 0:00:04]} Rg8 {[%emt 0:00:09]} 24. Ng3 {[%emt 0:00:34]} f6 {[%emt 0:00:02]} 25. Bd2 {[%emt 0:00:03]} Qd7 {[%emt 0:00:20]} 26. Kh2 {[%emt 0:00:19]} Raf8 {[%emt 0:00:14]} 27. c4 {[%emt 0:01:16]} bxc3 {[%emt 0:00:01]} 28. bxc3 {[%emt 0:00:02]} Qe8 {[%emt 0:00:08]} 29. c4 {[%emt 0:00:09]} Nc7 {[%emt 0:00:03]} 30. Rg1 {[%emt 0:00:25]} Qf7 {[%emt 0:00:13]} 31. Nh5 {[%emt 0:00:54]} Qh7 {[%emt 0:00:39]} 32. Ng7 {[%emt 0:01:10]} Bd7 {[%emt 0:00:14]} 33. Raf1 {[%emt 0:00:12]} Ne8 {[%emt 0:00:51]} 34. Nxe8 {[%emt 0:00:34]} Bxe8 {[%emt 0:00:14]} 35. Qf4 {[%emt 0:00:38]} Rxg1 {[%emt 0:00:17]} 36. Rxg1 {[%emt 0:00:05]} Rg8 {[%emt 0:00:01]} 37. Rxg8+ {[%emt 0:00:27]} Qxg8 {[%emt 0:00:02]} 38. Qg3 {[%emt 0:00:03]} Ba4 {[%emt 0:00:20]} 39. Qe3 {[%emt 0:00:24]} Qh7 {[%emt 0:00:07]} 40. Qe4 {[%emt 0:00:27]} Bd7 {[%emt 0:00:16]} 41. Qa8+ {[%emt 0:00:28]} Qg8 {[%emt 0:00:02]} 42. Qxg8+ {[%emt 0:00:02]} Kxg8 43. Bc3 {[%emt 0:00:13]} Bxf5 {[%emt 0:00:03]} 44. d4 {[%emt 0:00:01]} cxd4 {[%emt 0:00:03]} 45. Bxd4 {[%emt 0:00:01]} Be6 46. c5 {[%emt 0:00:05]} dxc5 {[%emt 0:00:33]} 47. Bxc5 {[%emt 0:00:02]} Bxa2 {[%emt 0:00:01]} 48. Bxe7 {[%emt 0:00:01]} f5 {[%emt 0:00:03]} 49. Bg5 {[%emt 0:00:08]} Bd5 {[%emt 0:00:05]} 50. Kg3 {[%emt 0:00:02]} a5 {[%emt 0:00:01]} 51. h4 {[%emt 0:00:02]} a4 {[%emt 0:00:01]} 52. Kf4 {[%emt 0:00:09]} Be4 {[%emt 0:00:04]} 53. Bf6 {[%emt 0:00:07]} Kh7 {[%emt 0:00:03]} 54. Kg5 {[%emt 0:00:07]} a3 {[%emt 0:00:06]} 55. Kh5 {[%emt 0:00:11]} Kg8 {[%emt 0:00:22]} 56. Kg5 {[%emt 0:00:17]} a2 {[%emt 0:00:05]} 57. h5 {[%emt 0:00:08]} Kh7 {[%emt 0:00:09]} 58. Be5 {[%emt 0:00:01]} Bf3 {[%emt 0:00:11]} 59. Kxf5 {[%emt 0:00:03]} Bxh5 {[%emt 0:00:04]} 60. Kg5 {[%emt 0:00:01]} Bf7 {[%emt 0:00:03]} 61. Bd4 {[%emt 0:00:02]} 1/2-1/2

[Event "3rd FIDE WCCC Rapid U08 2019"]
[Site "Minsk"]
[Date "2019.08.16"]
[Round "4.3"]
[White "Tsoy, Maxim"]
[Black "Saulin, Grigoriy"]
[Result "0-1"]
[ECO "C55"]
[WhiteElo "1689"]
[BlackElo "1117"]
[Annotator "NA"]
[PlyCount "88"]
[EventDate "2019.08.16"]
[EventType "swiss"]
[EventCountry "BLR"]
[SourceTitle "playchess.com"]
[Source "ChessBase"]
[SourceQuality "1"]
[TimeControl "600+5"]

1. e4 {[%emt 0:00:00]} e5 {[%emt 0:00:00]} 2. Nf3 {[%emt 0:00:00]} Nc6 {[%emt 0:00:00]} 3. Bc4 {[%emt 0:00:00]} Nf6 {[%emt 0:00:00]} 4. d3 {[%emt 0:00:00]} Be7 {[%emt 0:00:00]} 5. c3 {[%emt 0:00:01]} O-O {[%emt 0:00:03]} 6. Nbd2 {[%emt 0:00:01]} d5 {[%emt 0:00:06]} 7. exd5 {[%emt 0:00:02]} Nxd5 {[%emt 0:00:02]} 8. Ne4 {[%emt 0:00:29]} Bg4 {[%emt 0:00:08]} 9. O-O {[%emt 0:00:41]} Kh8 {[%emt 0:00:06]} 10. h3 {[%emt 0:00:22]} Bh5 {[%emt 0:00:03]} 11. Ng3 {[%emt 0:00:02]} Bg6 {[%emt 0:00:09]} 12. Re1 {[%emt 0:00:15]} Bf6 {[%emt 0:00:18]} 13. Ne4 {[%emt 0:00:29]} Bxe4 {[%emt 0:00:12]} 14. Rxe4 {[%emt 0:00:10]} Re8 {[%emt 0:00:24]} 15. Qb3 {[%emt 0:00:15]} Na5 {[%emt 0:00:17]} 16. Qa4 {[%emt 0:00:16]} Nxc4 {[%emt 0:00:02]} 17. Qxc4 {[%emt 0:00:03]} c6 {[%emt 0:00:14]} 18. Bd2 {[%emt 0:00:28]} Qc7 {[%emt 0:00:13]} 19. Rae1 {[%emt 0:00:21]} Re7 {[%emt 0:00:22]} 20. d4 {[%emt 0:00:07]} exd4 {[%emt 0:00:16]} 21. Rxe7 {[%emt 0:00:02]} Nxe7 {[%emt 0:00:03]} 22. Nxd4 {[%emt 0:00:20]} Nd5 {[%emt 0:00:09]} 23. Qe2 {[%emt 0:00:30]} h6 {[%emt 0:00:16]} 24. Qh5 Bxd4 {[%emt 0:00:48]} 25. cxd4 {[%emt 0:00:26]} Kh7 {[%emt 0:00:40]} 26. Re5 {[%emt 0:00:30]} Nf6 {[%emt 0:00:42]} 27. Qf5+ {[%emt 0:00:01]} Kg8 {[%emt 0:00:05]} 28. Bxh6 {[%emt 0:00:03]} Nd5 {[%emt 0:00:54]} 29. Qg5 {[%emt 0:00:29]} f6 {[%emt 0:00:28]} 30. Qf5 {[%emt 0:00:16]} fxe5 {[%emt 0:00:05]} 31. Qe6+ {[%emt 0:00:45]} Qf7 {[%emt 0:00:17]} 32. Qxe5 {[%emt 0:00:17]} gxh6 {[%emt 0:00:04]} 33. Qg3+ {[%emt 0:00:05]} Qg7 {[%emt 0:00:19]} 34. Qd3 {[%emt 0:00:02]} Kh8 {[%emt 0:00:21]} 35. Qe4 {[%emt 0:00:33]} Rf8 {[%emt 0:00:18]} 36. g3 {[%emt 0:00:14]} Qf6 {[%emt 0:00:20]} 37. f4 {[%emt 0:00:07]} Qg7 {[%emt 0:00:26]} 38. Kh2 {[%emt 0:00:05]} Nf6 {[%emt 0:00:08]} 39. Qf3 {[%emt 0:00:02]} Rd8 {[%emt 0:00:24]} 40. Qe3 {[%emt 0:00:02]} Re8 {[%emt 0:00:18]} 41. Qf3 {[%emt 0:00:02]} Qe7 {[%emt 0:00:04]} 42. Qg2 {[%emt 0:00:14]} Qe2 {[%emt 0:00:02]} 43. Qxe2 {[%emt 0:00:02]} Rxe2+ {[%emt 0:00:01]} 44. Kg1 {[%emt 0:00:01]} Rxb2 {[%emt 0:00:02]} 0-1

[Event "3rd FIDE WCCC Rapid U08 2019"]
[Site "Minsk"]
[Date "2019.08.16"]
[Round "4.5"]
[White "Bayramli, Rafael"]
[Black "Karimli, Yusif"]
[Result "1-0"]
[ECO "A13"]
[WhiteElo "1514"]
[BlackElo "1658"]
[Annotator "NA"]
[PlyCount "71"]
[EventDate "2019.08.16"]
[EventType "swiss"]
[EventCountry "BLR"]
[SourceTitle "playchess.com"]
[Source "ChessBase"]
[SourceQuality "1"]
[TimeControl "600+5"]

1. c4 {[%emt 0:00:00]} e6 {[%emt 0:00:06]} 2. g3 {[%emt 0:00:02]} d5 {[%emt 0:00:07]} 3. cxd5 {[%emt 0:00:04]} exd5 {[%emt 0:00:15]} 4. d4 {[%emt 0:00:10]} Nf6 {[%emt 0:00:43]} 5. Bg2 {[%emt 0:00:02]} c6 {[%emt 0:00:30]} 6. Nc3 {[%emt 0:00:17]} Be7 {[%emt 0:02:02]} 7. Nf3 {[%emt 0:00:08]} Bf5 {[%emt 0:00:34]} 8. O-O {[%emt 0:00:57]} O-O {[%emt 0:00:23]} 9. Nh4 {[%emt 0:01:01]} Bg4 {[%emt 0:02:36]} 10. Nf3 {[%emt 0:00:33]} Nbd7 {[%emt 0:00:52]} 11. Bf4 {[%emt 0:01:09]} Re8 {[%emt 0:00:59]} 12. h3 {[%emt 0:00:49]} Bf5 {[%emt 0:00:31]} 13. Nh4 {[%emt 0:00:20]} Be6 {[%emt 0:00:22]} 14. Nf3 {[%emt 0:00:28]} Qb6 {[%emt 0:00:23]} 15. Na4 {[%emt 0:00:32]} Qa6 {[%emt 0:00:10]} 16. Nc3 {[%emt 0:00:30]} b6 {[%emt 0:00:19]} 17. Rc1 {[%emt 0:00:37]} Rac8 {[%emt 0:00:12]} 18. Qa4 {[%emt 0:00:59]} Qxa4 {[%emt 0:00:09]} 19. Nxa4 {[%emt 0:00:02]} c5 {[%emt 0:00:05]} 20. Nc3 {[%emt 0:00:37]} c4 {[%emt 0:00:11]} 21. Nb5 {[%emt 0:00:24]} a6 {[%emt 0:00:07]} 22. Nc7 {[%emt 0:00:26]} Red8 {[%emt 0:00:06]} 23. Nxe6 {[%emt 0:00:07]} fxe6 {[%emt 0:00:01]} 24. Ng5 {[%emt 0:00:25]} Nf8 {[%emt 0:00:03]} 25. Rc2 {[%emt 0:00:53]} h6 {[%emt 0:00:03]} 26. Nf3 {[%emt 0:00:02]} N8d7 {[%emt 0:00:07]} 27. g4 {[%emt 0:00:11]} b5 {[%emt 0:00:09]} 28. a3 {[%emt 0:00:06]} a5 {[%emt 0:00:02]} 29. Ne5 {[%emt 0:00:03]} Nxe5 {[%emt 0:00:04]} 30. Bxe5 {[%emt 0:00:05]} b4 {[%emt 0:00:05]} 31. axb4 {[%emt 0:00:10]} axb4 {[%emt 0:00:01]} 32. Ra1 {[%emt 0:00:08]} Ra8 {[%emt 0:00:08]} 33. Rcc1 {[%emt 0:00:06]} Nd7 {[%emt 0:00:07]} 34. Bg3 {[%emt 0:00:12]} Bf6 {[%emt 0:00:07]} 35. e3 {[%emt 0:00:05]} Nb6 {[%emt 0:00:04]} 36. Bc7 {[%emt 0:00:05]} 1-0